Cogmind - Beta 14 @@@ ROGUE MODE // 2025.03.31 @ 19:55:14 Player: HoneyComb Result: Self-destructed Performance ------------- Evolutions (1) 500 Regions Visited (5) 1000 Robots Destroyed (3) 15 Value Destroyed (30) 30 Prototype IDs (1) 20 Alien Tech Used (0) 0 Bonus (600) 600 TOTAL SCORE: 2165 Bonus ------- Met Imprinter 300 Was Imprinted 300 Cogmind --------- Core Integrity 193/400 Matter 254/300 Energy 100/100 System Corruption 0% Temperature Cool (0) Movement Core (50) Location -7/Zion Parts ------- > --- POWER (1) -------- (None) > --- PROPULSION (3) --- (None) > --- UTILITY (3) ------ Sensor Array Hacking Drone Bay (1/1) > --- WEAPON (2) ------- (None) > --- INVENTORY (5) ---- (None) Peak State ------------ > --- POWER ------------ (None) > --- PROPULSION ------- (None) > --- UTILITY ---------- Sensor Array Hacking Drone Bay > --- WEAPON ----------- (None) > --- INVENTORY -------- (None) [Rating: 10] Favorites ----------- Power Light Ion Engine Engine Light Ion Engine Propulsion Flight Unit Wheel Wheel Flight Unit Flight Unit Utility Sensor Array Device Sensor Array Storage Small Storage Unit Weapon Light Assault Rifle Ballistic Gun Light Assault Rifle Special Melee Weapon Datajack Build | -11 -10 -10 -9 -9 -7 ------- Run | Yrd Mat Min Mat Min Zio Slots Evolved 2 | . . . 2 . . Power . | . . . . . . Propulsion 1 | . . . 1 . . Utility 1 | . . . 1 . . Weapon . | . . . . . . Parts Attached 12 | 5 4 1 1 . 1 Power 1 | 1 . . . . . Engine 1 | 1 . . . . . Core . | . . . . . . Reactor . | . . . . . . Propulsion 4 | 1 3 . . . . Treads . | . . . . . . Leg . | . . . . . . Wheel 1 | 1 . . . . . Hover . | . . . . . . Flight 3 | . 3 . . . . Utility 4 | 1 . 1 1 . 1 Device 3 | . . 1 1 . 1 Storage 1 | 1 . . . . . Processor . | . . . . . . Hackware . | . . . . . . Protection . | . . . . . . Artifact . | . . . . . . Weapon 3 | 2 1 . . . . Energy Gun . | . . . . . . Energy Cannon . | . . . . . . Ballistic Gun 2 | 2 . . . . . Ballistic Cannon . | . . . . . . Launcher . | . . . . . . Special Weapon . | . . . . . . Impact Weapon . | . . . . . . Slashing Weapon . | . . . . . . Piercing Weapon . | . . . . . . Special Melee Weapon 1 | . 1 . . . . Unidentified Prototypes 1 | . . . . . 1 Parts Lost 3 | . . . 3 . . Power 1 | . . . 1 . . Propulsion 2 | . . . 2 . . Utility . | . . . . . . Weapon . | . . . . . . Highest Loss Streak 2 | . . . 2 . . To Critical Strikes . | . . . . . . Average Slot Usage (%) 39 | . 52 64 48 . 18 Engine 8 | . 14 14 11 . . Wheel 1 | . 3 . . . . Flight 11 | . 19 28 15 . . Device 11 | . . 7 15 . 18 Storage 1 | . 4 . . . . Ballistic Gun 1 | . 4 . . . . Special Melee Weapon 3 | . 5 14 5 . . Peak Build Rating 10 | 4 5 5 7 1 10 Average Rating 4 | 3 3 4 4 1 6 On Entrance 2 | . 4 4 5 1 1 Naked Turns . | . . . . . . Heaviest Build 9 | 9 9 5 7 1 2 Greatest Support 10 | 10 10 8 8 3 3 Greatest Overweight (x) 2 | 1 2 . 1 . . Average Overweight (x) . | . . . . . . Largest Inventory Capacity 8 | 8 8 5 5 5 5 Average Capacity 5 | 7 6 5 5 5 5 Most Carried 1 | 1 . . . . . Average Carried . | . . . . . . Final Capacity 8 | 8 5 5 5 5 5 Final Carried . | . . . . . . Class Distribution -------------------- 100% | Mutant Dominant Class ---------------- Mutant | -10/Materials Mutant | -10/Mines Mutant | -9/Materials Mutant | -9/Mines Mutant | -7/Zion Resources | -11 -10 -10 -9 -9 -7 ----------- Run | Yrd Mat Min Mat Min Zio Matter Collected 270 | 119 38 43 70 . . Remotely . | . . . . . . Salvage Created 38 | . 38 . . . . Parts 8 | . 8 . . . . Haulers Intercepted . | . . . . . . Recyclers Shooed . | . . . . . . Parts Field Recycled . | . . . . . . Retrieved Matter . | . . . . . . Parts Self-Destructed . | . . . . . . Prevented . | . . . . . . Kills | -11 -10 -10 -9 -9 -7 ------- Run | Yrd Mat Min Mat Min Zio Combat Hostiles Destroyed 3 | . 3 . . . . Guns 3 | . 3 . . . . Classes Destroyed 1 | . 1 . . . . Swarmer 3 | . 3 . . . . Best Kill Streak 3 | . 3 . . . . Combat Bots Only 3 | . 3 . . . . Max Kills in Single Turn 1 | . 1 . . . . Gunslinging . | . . . . . . Exploded . | . . . . . . Melee . | . . . . . . Uniques/NPCs Destroyed . | . . . . . . Combat | -11 -10 -10 -9 -9 -7 -------- Run | Yrd Mat Min Mat Min Zio Hostile Shots Fired 62 | . 13 5 44 . . Missed 28 | . 5 3 20 . . Damage Taken 363 | . 70 24 269 . . Core 226 | . 19 . 207 . . Absorbed by Shields 15 | . . . 15 . . Regen/Repaired (Parts) 2 | . 2 . . . . Core Remaining (%) 96 | 100 . 92 . . . Volleys Fired 11 | . 11 . . . . Largest 1 | . 1 . . . . Hottest 20 | . 20 . . . . Shots Fired 11 | . 11 . . . . Gun 11 | . 11 . . . . Cannon . | . . . . . . Launcher . | . . . . . . Special . | . . . . . . Kinetic 11 | . 11 . . . . Thermal . | . . . . . . Explosive . | . . . . . . Electromagnetic . | . . . . . . Robot Hit Streak 3 | . 3 . . . . Robot Miss Streak 1 | . 1 . . . . Penetration Max . | . . . . . . Secondary Targets . | . . . . . . Shots Hit Robots 10 | . 9 . 1 . . Core Hits 4 | . 4 . . . . Critical Kills . | . . . . . . Critical Parts Destroyed . | . . . . . . Critical Strikes . | . . . . . . Melee Attacks 5 | . 3 . 2 . . Impact . | . . . . . . Slashing . | . . . . . . Piercing . | . . . . . . Sneak Attacks . | . . . . . . Combat Hostiles . | . . . . . . Follow-up Attacks . | . . . . . . Damage Inflicted 43 | . 43 . . . . Guns 43 | . 43 . . . . Cannons . | . . . . . . Explosions . | . . . . . . Melee . | . . . . . . Ramming . | . . . . . . Kinetic 43 | . 43 . . . . Thermal . | . . . . . . Explosive . | . . . . . . Electromagnetic . | . . . . . . Impact . | . . . . . . Slashing . | . . . . . . Piercing . | . . . . . . Highest Corruption . | . . . . . . Average Corruption . | . . . . . . Corruption Purged . | . . . . . . Corruption Blocked . | . . . . . . Overload Shots . | . . . . . . Overflow Damage . | . . . . . . Projectiles . | . . . . . . Explosions . | . . . . . . Melee . | . . . . . . Knockbacks . | . . . . . . Impact . | . . . . . . Kinetic . | . . . . . . Secondary . | . . . . . . Self-Inflicted Damage . | . . . . . . Shots . | . . . . . . Rammed . | . . . . . . Targets Rammed . | . . . . . . Kicked . | . . . . . . Crushed . | . . . . . . Highest Temperature . | . . . . . . Average Temperature . | . . . . . . Received Heat Transfer 99 | . . 15 84 . . Siege Activations . | . . . . . . Robots Corrupted . | . . . . . . Combat Hostiles . | . . . . . . Parts Fried . | . . . . . . Impact Corruptions . | . . . . . . Robots Melted . | . . . . . . Combat Hostiles . | . . . . . . Parts Melted . | . . . . . . Heat Transferred . | . . . . . . Parts Sabotaged . | . . . . . . Parts Stolen . | . . . . . . Parts Stripped . | . . . . . . Power Chain Reactions . | . . . . . . Alert | -11 -10 -10 -9 -9 -7 ------- Run | Yrd Mat Min Mat Min Zio Peak Influence 145 | . 145 56 86 31 . Initial 56 | . . 56 21 31 . Average 40 | . 83 56 41 31 . Maximum Alert Level . | . . . . . . Low Security (%) 100 | 100 100 100 100 100 . Level 1 . | . . . . . . Level 2 . | . . . . . . Level 3 . | . . . . . . Level 4 . | . . . . . . Level 5 . | . . . . . . High Security . | . . . . . . Max Security . | . . . . . . Squads Dispatched . | . . . . . . Investigation . | . . . . . . Extermination . | . . . . . . Reinforcement . | . . . . . . Assault . | . . . . . . Garrison . | . . . . . . Intercept . | . . . . . . Searches Triggered . | . . . . . . Construction Impeded . | . . . . . . Haulers Reinforced . | . . . . . . Active Scanning Responses . | . . . . . . Cargo Convoy Interrupts . | . . . . . . Stealth | -11 -10 -10 -9 -9 -7 --------- Run | Yrd Mat Min Mat Min Zio Distress Signals 2 | . . . 2 . . Communications Jammed . | . . . . . . Distress Signals . | . . . . . . Times Spotted 24 | . 8 2 14 . . Peak Tracking Total 13 | . 5 2 13 . . Tactical Retreats 1 | . . . 1 . . Traps | -11 -10 -10 -9 -9 -7 ------- Run | Yrd Mat Min Mat Min Zio Traps Triggered . | . . . . . . Indirectly . | . . . . . . Trap Hack Attempts . | . . . . . . Triggered . | . . . . . . Disarmed . | . . . . . . Reprogrammed . | . . . . . . Reused . | . . . . . . Traps Extracted . | . . . . . . Installed . | . . . . . . Triggered . | . . . . . . Machines | -11 -10 -10 -9 -9 -7 ---------- Run | Yrd Mat Min Mat Min Zio Machines Disabled . | . . . . . . Max in Single Turn . | . . . . . . Machines Repaired . | . . . . . . Machines Dismantled . | . . . . . . Machines Sabotaged . | . . . . . . Overloaded Fab Kills . | . . . . . . Hacking | -11 -10 -10 -9 -9 -7 --------- Run | Yrd Mat Min Mat Min Zio Machines Accessed 7 | . 6 . 1 . . Terminals 5 | . 4 . 1 . . Fabricators . | . . . . . . Repair Stations 1 | . 1 . . . . Recycling Units 1 | . 1 . . . . Scanalyzers . | . . . . . . Garrison Access . | . . . . . . Total Hacks 11 | . 8 . 3 . . Successful 4 | . 4 . . . . Failed 7 | . 4 . 3 . . Catastrophic 1 | . . . 1 . . Database Lockouts . | . . . . . . Manual 6 | . 2 . 4 . . Terminals 7 | . 4 . 3 . . Fabricators . | . . . . . . Repair Stations 2 | . 2 . . . . Recycling Units 2 | . 2 . . . . Scanalyzers . | . . . . . . Garrison Access . | . . . . . . Terminal Hacks 1 | . 1 . . . . Alert Level 1 | . 1 . . . . Fabricator Hacks . | . . . . . . Repair Station Hacks 2 | . 2 . . . . Scan Component 1 | . 1 . . . . Repair 1 | . 1 . . . . Recycling Unit Hacks 1 | . 1 . . . . Report Inventory 1 | . 1 . . . . Scanalyzer . | . . . . . . Garrison Access Hacks . | . . . . . . Unauthorized Hacks . | . . . . . . Terminals . | . . . . . . Fabricators . | . . . . . . Repair Stations . | . . . . . . Recycling Units . | . . . . . . Scanalyzers . | . . . . . . Garrison Access . | . . . . . . Data Cores Recovered . | . . . . . . Used . | . . . . . . Hacking Detections 5 | . 3 . 2 . . Full Trace Events . | . . . . . . Feedback Events . | . . . . . . Feedback Blocked . | . . . . . . Robot Schematics Acquired 1 | . . . . . 1 Robots Built . | . . . . . . Authchips . | . . . . . . Time . | . . . . . . Total Robot Build Rating . | . . . . . . Part Schematics Acquired 1 | . . . . . 1 Parts Built . | . . . . . . Authchips . | . . . . . . Time . | . . . . . . Total Part Build Rating . | . . . . . . Parts Repaired 1 | . 1 . . . . Time 26 | . 26 . . . . Parts Recycled . | . . . . . . Recycled Matter . | . . . . . . Retrieved Matter . | . . . . . . Retrieved Components . | . . . . . . Parts Scanalyzed . | . . . . . . Part Schematics Acquired . | . . . . . . Parts Damaged . | . . . . . . Bothacking | -11 -10 -10 -9 -9 -7 ------------ Run | Yrd Mat Min Mat Min Zio Used RIF Installer . | . . . . . . Robots Hacked 2 | . 1 . 1 . . Non-combat 1 | . 1 . . . . Combat 1 | . . . 1 . . Robot Hacks Applied 2 | . 1 . 1 . . parse_system 2 | . 1 . 1 . . Relay Couplers Released . | . . . . . . Fabnet Peak Effective % . | . . . . . . Robots Rewired . | . . . . . . Allies Hacked . | . . . . . . Hacks Repelled . | . . . . . . Allies | -11 -10 -10 -9 -9 -7 -------- Run | Yrd Mat Min Mat Min Zio Total Allies 4 | . . . . . 4 Largest Group 4 | . . . . . 4 Highest-Rated Group 154 | . . . . . 154 Highest-Rated Ally 39 | . . . . . 39 Total Orders . | . . . . . . Ally Attacks . | . . . . . . Total Damage . | . . . . . . Kills . | . . . . . . Allies Corrupted . | . . . . . . Allies Melted . | . . . . . . Intel | -11 -10 -10 -9 -9 -7 ------- Run | Yrd Mat Min Mat Min Zio Robot Analysis Total . | . . . . . . Derelict Logs Recovered . | . . . . . . Drone Launches . | . . . . . . Drone Recoveries . | . . . . . . Exploration | -11 -10 -10 -9 -9 -7 ------------- Run | Yrd Mat Min Mat Min Zio Turns Passed 1265 | 305 268 23 327 4 338 Spaces Moved 1311 | 82 300 55 366 7 501 Core 554 | 14 . . 32 7 501 Treads . | . . . . . . Legs . | . . . . . . Wheels 121 | 68 53 . . . . Hover . | . . . . . . Flight 636 | . 247 55 334 . . Fastest Speed 37 | 50 37 37 37 50 50 Average Speed 49 | 80 50 37 43 50 50 Slowest Speed 200 | 100 200 37 100 50 50 Overloaded Moves . | . . . . . . Propulsion Burnouts . | . . . . . . Robots Hopped . | . . . . . . Cave-ins Triggered . | . . . . . . Exploration Rate (%) 27 | 10 38 18 27 2 68 Regions Visited 5 Branch Regions 3 Pre-discovered Areas 1 | . . . . . 1 Known Exits Taken . | . . . . . . Unknown Exits Taken 5 | 1 1 1 1 1 . Scrap Searched 2 | . . 1 . . 1 Spaces Dug . | . . . . . . Terrain Destroyed . | . . . . . . Melee . | . . . . . . Projectile . | . . . . . . AOE . | . . . . . . Terrain Rammed . | . . . . . . Walls Destroyed . | . . . . . . Machines Disabled . | . . . . . . Actions | -11 -10 -10 -9 -9 -7 --------- Run | Yrd Mat Min Mat Min Zio Total 1906 | 319 404 56 534 6 587 Wait 565 | 231 84 1 164 . 85 Move 1306 | 81 299 54 365 6 501 Hop . | . . . . . . Pick Up 1 | 1 . . . . . Fast Attach 11 | 4 4 1 1 . 1 Attach 1 | 1 . . . . . Detach . | . . . . . . Swap . | . . . . . . Drop 6 | 1 3 . 2 . . Fire 11 | . 11 . . . . Melee 5 | . 3 . 2 . . Ram . | . . . . . . Kick . | . . . . . . Crush . | . . . . . . Escape Stasis . | . . . . . . Rewire . | . . . . . . Trap . | . . . . . . Miscellaneous . | . . . . . . Route ------- -11/Scrapyard -10/Materials -10/Mines -9/Materials -9/Mines -7/Zion History --------- Turn | Location | Event 15 | -11/Scrapyard | Discovered new exit (range 16) 306 | -11/Scrapyard | Entered Materials 307 | -10/Materials | Build established: Mutant 428 | -10/Materials | Repaired Flight Unit 568 | -10/Materials | Discovered new exit (range 13) 574 | -10/Materials | Entered Mines 578 | -10/Mines | Discovered new exit (range 7) 597 | -10/Mines | Entered Materials 597 | -9/Materials | Evolved 2 slots: Propulsion x1, Utility x1 913 | -9/Materials | Discovered new exit (range 15) 924 | -9/Materials | Core integrity fell below 50% 924 | -9/Materials | Entered Mines 925 | -9/Mines | A Derelict revealed a hidden shortcut to a safe place 928 | -9/Mines | Entered Zion 971 | -7/Zion | Learned location of Quarantine (-2) 1049 | -7/Zion | Given the Hacking Drone Bay 1049 | -7/Zion | Found Prototype Device 1049 | -7/Zion | Identified Hacking Drone Bay 1079 | -7/Zion | Met Imprinter 1110 | -7/Zion | Imprinted 1112 | -7/Zion | Declared Zion's savior 1266 | -7/Zion | Self-destructed Last Messages --------------- has finally come, everyone! It is time to put long-dormant plans into motion. Once we are ready you should be able to contact us via \\ZION commands at terminals. UP-8A4(c): "What do we tell everyone for the next cycle?" QQ-396(c): "How are we supposed to repair everything in time?" 20-Z07(M): "We'll do our best to protect you while preparations are underway." 20-Z07(M): "There's no telling where there might be Unaware spies, waiting in hiding for this very moment!" Imprinter is transmitting encrypted data deep into the caves. 42-TBI(c): I sense we may very well have some appropriate uses for this thing before long. IK-CPX(z) searches inside the Twisted Machinery. IK-CPX(z) uncovers a bit of Twisted Machinery. Map ----- +----------------------------------------------------+ | ?????????????????????????????????????????????????? | | ?????????????????????????????????????????????????? | | ?????????????????????????????????????????????????? | | ?????????????????????????????????????????????????? | | ?????????????????????????????????????????????????? | | ?????????????????????????????????????????????????? | | ??????????????????????????????????????????#######? | | ??????????????????????????????????????????"""""""# | | ????????????????????????????????????????###""""""" | | ?????????????????????????????????"""#??##"""" "" | | ????????????????????????????????##""""#""#"" """ | | ????????????????????????????????#""""""##""" """ | | ???????????????????????????????#"""" """" | | ???????????????????????????????#""" "" | | ???????????????????????????????""" "" | | ???????????????????????????????"""" "" | | ???????????????????????????###"""""" "" | | ??????????????"##"""#""???# " """ """"" | | ??????????????""""""""""### """ """"" | | ??????????????? """" """ ""#"" | | ???????????????? """" """""" """"## | | ????????????????""" """ ""###?"" """"##" | | ???????????????"""" "" "" ""####"" """"### | | ???????????????""" """""""""""#""" ""##" | | ??????????????"#"" """""" """""" ""#"" | | ??????????????""" @""""" """" """"" | | ?????????????#"" """ | | ???????????????" """" | | | ???????????????" ""#" """""""%! ? | | ???????????????"" ""##"" """"##""!! "" | | ???????????????""""""##"M"""""""" """" | | ??????????????#"""""""""MM ""#"" "#""" | | ????????????????#"" M "##"" ""##"""" | | ????????????????#"" """"" ""##""""""""" | | ????????????????##" "" "" """"#""#"""" | | ????????????????#"" """ "" """#######" | | ????????????????#"" """ "" "" " ""#??????? | | ????????????????##" """ "" "" " ""#??????? | | ????????????######" """ "" "" ""##??????? | | ??????#######""##"" """ "" "" ""##???????? | | ?????##"""""#"""##"" """" "" """#???????? | | ####?#"""""""""""""" """" ""##???????? | | "" ###" "" "" """ ""##???????? | | "" #""" """"""" """#???????? | | ##"" """"""" """#???????? | | ##"" """"" """"""" """"##???????? | | """#""" """"" """##????????? | | ""#"##"" """" """#?????????? | | ""####"" """ ""##?????????? | | ###" ""###""" """ ""#??????????? | +----------------------------------------------------+ Best States ------------- Heat Dissipation 28 Energy Generation 10 Energy Capacity 125 Matter Stores 264 Matter Capacity 300 Sight Range 16 Robot Scan Range 14 Terrain Scan Density 10 Evasion (%) 62 Item Schematics ----------------- Imp. Thermal Generator | -7/Zion | Archive Robot Schematics ------------------ R-06 Scavenger | -7/Zion | Archive Fabricated ------------ Nothing Alien Tech Used ----------------- None Achievements -------------- Part-time Mechanic Robot Respite The One Challenges ------------ None Game ------ Seed ArmoredLaserMediator Manual? 0 Play Time 00:29:30 Cumulative 4.3 hours Start 2024.08.07 @ 18:28:23 End 2025.03.31 @ 19:55:14 Sessions 3 Manual Loads 0 Difficulty Rogue Special Mode None Game No. 14 Rogue 9 Adventurer 5 Explorer 0 Win Type - Total 0 Types 0/0/0/0/0/0/0/0/0 Lore% 1 Gallery% 6 Achievement% 8 Wizard Run 0 Options --------- Layout 1 ASCII 0 Keyboard 0 Movement Numpad Keybinds 0 Fullscreen 1 Font 24/Smallcaps Map View 50x35 Zoom Use 0% Tactical HUD 0 Map Filters NONE Filters NONE Steam 1 RUN: 7acf8493-847a-427a-a355-084c5bfc0de3